Cogmind - Beta 11.1 @@@ ROGUE MODE // 2022.07.16 @ 23:03:37 Player: Sigil Result: Destroyed by G-50 Soldier with Heavy Laser Performance ------------- Evolutions (4) 2000 Regions Visited (9) 1800 Robots Destroyed (27) 135 Value Destroyed (399) 399 Prototype IDs (3) 60 Alien Tech Used (0) 0 Bonus (40) 40 TOTAL SCORE: 4434 Bonus ------- Follower Combat Kills 40 Cogmind --------- Core Integrity 0/850 Matter 190/300 Energy 98/100 System Corruption 7% Temperature Cool (21) Movement Core (50) Location -6/Lower Caves Parts ------- > --- POWER (1) -------- (None) > --- PROPULSION (4) --- (None) > --- UTILITY (8) ------ Advanced Weight Redist. System Machine Analyzer Visual Processing Unit Enhanced Optical Array Advanced Terrain Scan Processor System Shield > --- WEAPON (2) ------- (None) > --- INVENTORY (5) ---- Light Antimatter Reactor Energy Well (113) Advanced ECM Suite Force Field Makeshift Hacking Suite Peak State ------------ > --- POWER ------------ (None) > --- PROPULSION ------- Nuclear Pulse Thruster Nuclear Pulse Thruster Nuclear Pulse Thruster Nuclear Pulse Thruster > --- UTILITY ---------- Machine Analyzer Visual Processing Unit Enhanced Optical Array Advanced Sensor Array Signal Interpreter Advanced Terrain Scan Processor Improved Reaction Control System System Shield > --- WEAPON ----------- (None) > --- INVENTORY -------- Nuclear Pulse Thruster Advanced Weight Redist. System Machine Analyzer Advanced ECM Suite Force Field [Rating: 50] Favorites ----------- Power Light Ion Engine Engine Light Ion Engine Power Core Light Nuclear Core Propulsion Nuclear Pulse Thruster Treads Light Treads Flight Unit Nuclear Pulse Thruster Utility Visual Processing Unit Device Improved Terrain Scanner Processor Visual Processing Unit Hackware System Shield Protection Hardened Medium Armor Plating Weapon Light Assault Rifle Energy Gun Small Laser Energy Cannon Ion Cannon Ballistic Gun Light Assault Rifle Special Weapon Mining Laser Impact Weapon Power Maul Slashing Weapon Mining Claw Build | -11 -10 -9 -8 -7 -6 -6 -6 -6 -6 ------- Run | Scr Mat Mat Mat Fac Fac Was Fac Low Low Slots Evolved 8 | . . 2 2 2 2 . . . . Power . | . . . . . . . . . . Propulsion 2 | . . . . . 2 . . . . Utility 6 | . . 2 2 2 . . . . . Weapon . | . . . . . . . . . . Parts Attached 70 | 5 18 3 12 7 . 2 16 1 6 Power 4 | . 2 . . 1 . . 1 . . Engine 2 | . 2 . . . . . . . . Core 2 | . . . . 1 . . 1 . . Reactor . | . . . . . . . . . . Propulsion 16 | 2 2 . 2 1 . 1 7 . 1 Treads 2 | 2 . . . . . . . . . Leg . | . . . . . . . . . . Wheel . | . . . . . . . . . . Hover . | . . . . . . . . . . Flight 14 | . 2 . 2 1 . 1 7 . 1 Utility 31 | . 4 2 8 3 . 1 8 1 4 Device 15 | . 1 2 4 . . 1 4 1 2 Storage . | . . . . . . . . . . Processor 11 | . 3 . 2 2 . . 3 . 1 Hackware 4 | . . . 1 1 . . 1 . 1 Protection 1 | . . . 1 . . . . . . Artifact . | . . . . . . . . . . Weapon 19 | 3 10 1 2 2 . . . . 1 Energy Gun 2 | 1 1 . . . . . . . . Energy Cannon 1 | . . . 1 . . . . . . Ballistic Gun 8 | 2 5 1 . . . . . . . Ballistic Cannon . | . . . . . . . . . . Launcher . | . . . . . . . . . . Special Weapon 5 | . 4 . 1 . . . . . . Impact Weapon 2 | . . . . 1 . . . . 1 Slashing Weapon 1 | . . . . 1 . . . . . Piercing Weapon . | . . . . . . . . . . Special Melee Weapon . | . . . . . . . . . . Unidentified Prototypes 1 | . . . . 1 . . . . . Parts Lost 28 | . 2 4 1 . . 3 8 5 5 Power 1 | . . . . . . . 1 . . Propulsion 12 | . . 2 1 . . 1 4 2 2 Utility 9 | . . . . . . 1 3 3 2 Weapon 6 | . 2 2 . . . 1 . . 1 Highest Loss Streak 4 | . 1 4 1 . . 3 4 4 3 To Critical Strikes . | . . . . . . . . . . Average Slot Usage (%) 69 | . 72 89 59 80 73 50 61 64 56 Engine 1 | . 2 9 . . . . . . . Treads 3 | . 15 . . . . . . . . Flight 10 | . 12 19 8 13 13 5 8 14 4 Device 11 | . . 18 18 15 13 10 14 12 13 Processor 24 | . 15 22 26 29 26 21 27 30 26 Hackware 5 | . . . 3 13 13 10 6 6 8 Energy Gun 2 | . 6 11 . . . . . . . Ballistic Gun 5 | . 18 8 . . . . . . . Special Weapon 1 | . 1 1 2 4 . . . . . Naked Turns . | . . . . . . . . . . Heaviest Build 8 | 3 5 7 4 5 5 5 8 6 7 Greatest Support 40 | 20 40 8 5 11 5 6 24 18 12 Greatest Overweight (x) 1 | . . . . . 1 . . . 1 Average Overweight (x) . | . . . . . . . . . . Largest Inventory Capacity 5 | 5 5 5 5 5 5 5 5 5 5 Average Capacity 5 | 5 5 5 5 5 5 5 5 5 5 Most Carried 5 | 5 5 5 5 5 5 5 5 5 5 Average Carried 4 | 2 4 3 4 4 4 5 4 4 4 Final Capacity 5 | 5 5 5 5 5 5 5 5 5 5 Final Carried 5 | 5 5 5 4 4 5 5 4 4 5 Class Distribution -------------------- 34% | Mutant 19% | Scout 18% | Hacker-Scout 11% | Scavenger-Mutant 8% | Scavenger-Scout 5% | Hacker-Mutant Dominant Class ---------------- Mutant | -10/Materials Scavenger-Scout | -9/Materials Scout | -8/Materials Hacker-Scout | -7/Factory Hacker-Scout | -6/Factory Mutant | -6/Waste Mutant | -6/Factory Scout | -6/Lower Caves Mutant | -6/Lower Caves Resources | -11 -10 -9 -8 -7 -6 -6 -6 -6 -6 ----------- Run | Scr Mat Mat Mat Fac Fac Was Fac Low Low Matter Collected 924 | 268 371 . . 40 50 . 39 28 128 Remotely . | . . . . . . . . . . Salvage Created 696 | 106 519 . . 40 31 . . . . Parts 53 | 13 40 . . . . . . . . Haulers Intercepted . | . . . . . . . . . . Recyclers Shooed 1 | . 1 . . . . . . . . Parts Field Recycled . | . . . . . . . . . . Retrieved Matter . | . . . . . . . . . . Parts Self-Destructed 3 | . . . . . . . . 2 1 Prevented 1 | . . . . . . . . . 1 Kills | -11 -10 -9 -8 -7 -6 -6 -6 -6 -6 ------- Run | Scr Mat Mat Mat Fac Fac Was Fac Low Low Combat Hostiles Destroyed 11 | . 11 . . . . . . . . Guns 11 | . 11 . . . . . . . . Classes Destroyed 8 | 2 6 . . . . . . . . Worker 4 | . 2 . . 2 . . . . . Builder 2 | . 2 . . . . . . . . Tunneler 3 | 2 . . . 1 . . . . . Recycler 2 | 1 1 . . . . . . . . Operator 1 | . 1 . . . . . . . . Watcher 4 | . 3 . . . 1 . . . . Swarmer 6 | . 6 . . . . . . . . Grunt 5 | . 5 . . . . . . . . Best Kill Streak 4 | 3 4 . . 3 1 . . . . Combat Bots Only 3 | . 3 . . . . . . . . Max Kills in Single Turn 2 | 1 2 . . 1 1 . . . . Gunslinging . | . . . . . . . . . . Exploded . | . . . . . . . . . . Melee . | . . . . . . . . . . Uniques/NPCs Destroyed . | . . . . . . . . . . Combat | -11 -10 -9 -8 -7 -6 -6 -6 -6 -6 -------- Run | Scr Mat Mat Mat Fac Fac Was Fac Low Low Damage Taken 2444 | . 651 243 31 . 18 136 753 328 284 Core 1180 | . 197 107 17 . 6 136 385 163 169 Absorbed by Shields . | . . . . . . . . . . Core Remaining (%) 78 | 100 21 73 96 100 . . . . . Volleys Fired 92 | 6 79 1 4 2 . . . . . Largest 2 | 2 2 2 1 1 . . . . . Hottest 100 | 60 100 60 100 100 . . . . . Shots Fired 151 | 12 131 2 4 2 . . . . . Gun 139 | 12 125 2 . . . . . . . Cannon . | . . . . . . . . . . Launcher . | . . . . . . . . . . Special 12 | . 6 . 4 2 . . . . . Kinetic 120 | 6 113 1 . . . . . . . Thermal 31 | 6 18 1 4 2 . . . . . Explosive . | . . . . . . . . . . Electromagnetic . | . . . . . . . . . . Robot Hit Streak 9 | 3 9 . . . . . . . . Robot Miss Streak 5 | 3 5 2 3 . . . . . . Penetration Max . | . . . . . . . . . . Secondary Targets . | . . . . . . . . . . Shots Hit Robots 74 | 6 64 . . 3 1 . . . . Core Hits 39 | 4 35 . . . . . . . . Critical Kills . | . . . . . . . . . . Critical Parts Destroyed 2 | . . . . 2 . . . . . Critical Strikes 2 | . . . . 2 . . . . . Smash 2 | . . . . 2 . . . . . Melee Attacks 10 | . . . . 9 1 . . . . Impact 5 | . . . . 4 1 . . . . Slashing 5 | . . . . 5 . . . . . Piercing . | . . . . . . . . . . Sneak Attacks 3 | . . . . 3 . . . . . Combat Hostiles . | . . . . . . . . . . Follow-up Attacks . | . . . . . . . . . . Damage Inflicted 1215 | 70 759 . . 305 69 . . . 12 Guns 723 | 70 653 . . . . . . . . Cannons . | . . . . . . . . . . Explosions 102 | . 102 . . . . . . . . Melee 374 | . . . . 305 69 . . . . Ramming 16 | . 4 . . . . . . . 12 Kinetic 634 | 38 596 . . . . . . . . Thermal 89 | 32 57 . . . . . . . . Explosive 102 | . 102 . . . . . . . . Electromagnetic . | . . . . . . . . . . Impact 374 | . . . . 305 69 . . . . Slashing . | . . . . . . . . . . Piercing . | . . . . . . . . . . Highest Corruption 7 | . . . . . . 7 7 7 7 Average Corruption 7 | . . . . . . 7 7 7 7 Corruption Purged . | . . . . . . . . . . Corruption Blocked . | . . . . . . . . . . Effects 30 | . . . . . . . 14 5 11 Message Errors 8 | . . . . . . . 5 1 2 Matter Fused 5 | . . . . . . . 1 1 3 Heat Flow Errors 2 | . . . . . . . 1 . 1 Energy Discharges 9 | . . . . . . . 5 2 2 Data Loss (minor) 2 | . . . . . . . . 1 1 Data Loss (major) 2 | . . . . . . . 2 . . Alerts 2 | . . . . . . . . . 2 Overload Shots . | . . . . . . . . . . Overflow Damage 337 | . . . . 290 47 . . . . Projectiles . | . . . . . . . . . . Explosions . | . . . . . . . . . . Melee 337 | . . . . 290 47 . . . . Knockbacks . | . . . . . . . . . . Impact . | . . . . . . . . . . Kinetic . | . . . . . . . . . . Secondary . | . . . . . . . . . . Self-Inflicted Damage 96 | . 90 . . . . . . . 6 Shots 1 | . 1 . . . . . . . . Rammed 2 | . 1 . . . . . . . 1 Targets Rammed 2 | . 1 . . . . . . . 1 Kicked . | . . . . . . . . . . Crushed . | . . . . . . . . . . Highest Temperature 237 | . 54 18 . . . . 126 . 237 Average Temperature 27 | . 15 14 . . . . 77 . 126 Received Heat Transfer 438 | . 153 . 9 . . . 207 18 51 Siege Activations . | . . . . . . . . . . Robots Corrupted . | . . . . . . . . . . Combat Hostiles . | . . . . . . . . . . Parts Fried 4 | . . . . 3 1 . . . . Impact Corruptions 9 | . . . . 6 3 . . . . Robots Melted . | . . . . . . . . . . Combat Hostiles . | . . . . . . . . . . Parts Melted . | . . . . . . . . . . Heat Transferred 200 | 75 125 . . . . . . . . Parts Sabotaged . | . . . . . . . . . . Parts Stolen . | . . . . . . . . . . Parts Stripped . | . . . . . . . . . . Power Chain Reactions . | . . . . . . . . . . Missiles Intercepted . | . . . . . . . . . . Alert | -11 -10 -9 -8 -7 -6 -6 -6 -6 -6 ------- Run | Scr Mat Mat Mat Fac Fac Was Fac Low Low Peak Influence 342 | 15 342 200 155 103 123 32 272 . . Initial 135 | . 9 135 79 43 22 32 . . . Average 120 | 3 209 177 85 39 38 10 126 . . Maximum Alert Level 1 | . 1 1 . . . . 1 . . Low Security (%) 79 | 100 47 94 100 100 100 100 71 . . Level 1 20 | . 52 5 . . . . 28 . . Level 2 . | . . . . . . . . . . Level 3 . | . . . . . . . . . . Level 4 . | . . . . . . . . . . Level 5 . | . . . . . . . . . . High Security . | . . . . . . . . . . Max Security . | . . . . . . . . . . Squads Dispatched 11 | . 3 . 1 . 2 . 5 . . Investigation 6 | . 1 . 1 . 1 . 3 . . Extermination . | . . . . . . . . . . Reinforcement 4 | . 2 . . . . . 2 . . Assault . | . . . . . . . . . . Garrison 1 | . . . . . 1 . . . . Intercept . | . . . . . . . . . . Searches Triggered . | . . . . . . . . . . Construction Impeded . | . . . . . . . . . . Haulers Reinforced . | . . . . . . . . . . Active Scanning Responses . | . . . . . . . . . . Cargo Convoy Interrupts . | . . . . . . . . . . Stealth | -11 -10 -9 -8 -7 -6 -6 -6 -6 -6 --------- Run | Scr Mat Mat Mat Fac Fac Was Fac Low Low Distress Signals 4 | . 1 2 . 1 . . . . . Communications Jammed . | . . . . . . . . . . Distress Signals . | . . . . . . . . . . Times Spotted 119 | . 29 13 6 5 6 5 26 20 9 Peak Tracking Total 11 | . 5 10 3 3 3 5 7 11 4 Tactical Retreats 21 | . 5 1 2 1 . . 6 4 2 Traps | -11 -10 -9 -8 -7 -6 -6 -6 -6 -6 ------- Run | Scr Mat Mat Mat Fac Fac Was Fac Low Low Traps Triggered 3 | . 2 . . . 1 . . . . Indirectly . | . . . . . . . . . . Trap Hack Attempts . | . . . . . . . . . . Triggered . | . . . . . . . . . . Disarmed . | . . . . . . . . . . Reprogrammed . | . . . . . . . . . . Reused . | . . . . . . . . . . Traps Extracted . | . . . . . . . . . . Installed . | . . . . . . . . . . Triggered 1 | . . . . . . . . . 1 Machines | -11 -10 -9 -8 -7 -6 -6 -6 -6 -6 ---------- Run | Scr Mat Mat Mat Fac Fac Was Fac Low Low Machines Disabled 2 | . 2 . . . . . . . . Max in Single Turn 2 | . 2 . . . . . . . . Machines Sabotaged . | . . . . . . . . . . Garrisons Compromised . | . . . . . . . . . . Overloaded Fab Kills . | . . . . . . . . . . Hacking | -11 -10 -9 -8 -7 -6 -6 -6 -6 -6 --------- Run | Scr Mat Mat Mat Fac Fac Was Fac Low Low Machines Accessed 26 | . 5 3 6 6 1 . 5 . . Terminals 23 | . 5 3 6 6 1 . 2 . . Fabricators 3 | . . . . . . . 3 . . Repair Stations . | . . . . . . . . . . Recycling Units . | . . . . . . . . . . Scanalyzers . | . . . . . . . . . . Garrison Access . | . . . . . . . . . . Total Hacks 84 | . 17 5 23 24 4 . 11 . . Successful 45 | . 10 2 12 12 1 . 8 . . Failed 37 | . 7 3 10 11 3 . 3 . . Catastrophic 5 | . 1 1 . . 2 . 1 . . Database Lockouts 2 | . . . 1 1 . . . . . Manual 65 | . 15 5 24 15 4 . 2 . . Terminals 76 | . 17 5 23 24 4 . 3 . . Fabricators 8 | . . . . . . . 8 . . Repair Stations . | . . . . . . . . . . Recycling Units . | . . . . . . . . . . Scanalyzers . | . . . . . . . . . . Garrison Access . | . . . . . . . . . . Terminal Hacks 16 | . 4 . 4 7 . . 1 . . Part Schematic 3 | . . . 1 1 . . 1 . . Prototype ID Bank 1 | . . . . 1 . . . . . Level Access Points 1 | . . . . 1 . . . . . Unreport Threat 6 | . 1 . 3 2 . . . . . Registered Prototypes 1 | . 1 . . . . . . . . Zone Layout 4 | . 2 . . 2 . . . . . Fabricator Hacks 6 | . . . . . . . 6 . . Load Schematic 3 | . . . . . . . 3 . . Build 3 | . . . . . . . 3 . . Repair Station Hacks . | . . . . . . . . . . Recycling Unit Hacks . | . . . . . . . . . . Scanalyzer . | . . . . . . . . . . Garrison Access Hacks . | . . . . . . . . . . Unauthorized Hacks 23 | . 6 2 8 5 1 . 1 . . Terminals 23 | . 6 2 8 5 1 . 1 . . Track 3 | . . . 2 1 . . . . . Assimilate 5 | . 1 . 3 1 . . . . . Botnet 11 | . 4 1 2 2 1 . 1 . . Operators 4 | . 1 1 1 1 . . . . . Fabricators . | . . . . . . . . . . Repair Stations . | . . . . . . . . . . Recycling Units . | . . . . . . . . . . Scanalyzers . | . . . . . . . . . . Garrison Access . | . . . . . . . . . . Data Cores Recovered . | . . . . . . . . . . Used . | . . . . . . . . . . Hacking Detections 25 | . 5 3 6 6 1 . 4 . . Full Trace Events 6 | . . . 2 . 1 . 3 . . Feedback Events . | . . . . . . . . . . Feedback Blocked . | . . . . . . . . . . Robot Schematics Acquired . | . . . . . . . . . . Robots Built . | . . . . . . . . . . Authchips . | . . . . . . . . . . Time . | . . . . . . . . . . Total Robot Build Rating . | . . . . . . . . . . Part Schematics Acquired 3 | . . . 1 1 . . 1 . . Parts Built 2 | . . . . . . . 2 . . Authchips . | . . . . . . . . . . Time 219 | . . . . . . . 219 . . Total Part Build Rating 6 | . . . . . . . 6 . . Parts Repaired . | . . . . . . . . . . Time . | . . . . . . . . . . Parts Recycled . | . . . . . . . . . . Recycled Matter . | . . . . . . . . . . Retrieved Matter . | . . . . . . . . . . Retrieved Components . | . . . . . . . . . . Parts Scanalyzed . | . . . . . . . . . . Part Schematics Acquired . | . . . . . . . . . . Parts Damaged . | . . . . . . . . . . Bothacking | -11 -10 -9 -8 -7 -6 -6 -6 -6 -6 ------------ Run | Scr Mat Mat Mat Fac Fac Was Fac Low Low Used RIF Installer . | . . . . . . . . . . Robots Hacked . | . . . . . . . . . . Non-combat . | . . . . . . . . . . Combat . | . . . . . . . . . . Robot Hacks Applied . | . . . . . . . . . . Relay Couplers Released . | . . . . . . . . . . Fabnet Peak Effective % . | . . . . . . . . . . Robots Rewired 2 | . . . . . 2 . . . . Allies Hacked . | . . . . . . . . . . Hacks Repelled . | . . . . . . . . . . Allies | -11 -10 -9 -8 -7 -6 -6 -6 -6 -6 -------- Run | Scr Mat Mat Mat Fac Fac Was Fac Low Low Total Allies 6 | . 1 . 1 1 2 1 . . . Largest Group 4 | . 1 1 1 2 4 1 . . . Highest-Rated Group 104 | . 10 10 10 36 104 31 . . . Highest-Rated Ally 34 | . 10 10 10 26 34 31 . . . Total Orders 7 | . 2 2 . 3 . . . . . STAY 3 | . 1 1 . 1 . . . . . FOLLOW 4 | . 1 1 . 2 . . . . . Ally Attacks 11 | . . . . . 5 6 . . . Total Damage 571 | . . . . . 468 103 . . . Kills 3 | . . . . . 3 . . . . Allies Corrupted . | . . . . . . . . . . Allies Melted . | . . . . . . . . . . Intel | -11 -10 -9 -8 -7 -6 -6 -6 -6 -6 ------- Run | Scr Mat Mat Mat Fac Fac Was Fac Low Low Robot Analysis Total . | . . . . . . . . . . Derelict Logs Recovered 2 | . . . . . . . . . 2 Drone Launches . | . . . . . . . . . . Drone Recoveries . | . . . . . . . . . . Exploration | -11 -10 -9 -8 -7 -6 -6 -6 -6 -6 ------------- Run | Scr Mat Mat Mat Fac Fac Was Fac Low Low Turns Passed 3113 | 64 772 217 315 573 144 70 406 125 427 Spaces Moved 4617 | 58 885 253 444 936 212 142 670 300 717 Core 872 | 55 265 53 27 . 2 63 144 . 263 Treads 60 | 3 57 . . . . . . . . Legs . | . . . . . . . . . . Wheels . | . . . . . . . . . . Hover . | . . . . . . . . . . Flight 3685 | . 563 200 417 936 210 79 526 300 454 Fastest Speed 31 | 50 37 37 35 34 35 35 31 34 37 Average Speed 41 | 55 48 39 36 34 35 42 42 38 42 Slowest Speed 160 | 160 160 50 50 35 100 50 50 40 120 Overloaded Moves . | . . . . . . . . . . Propulsion Burnouts . | . . . . . . . . . . Robots Hopped 40 | . 7 1 2 2 12 . 12 4 . Cave-ins Triggered . | . . . . . . . . . . Exploration Rate (%) 39 | 3 83 22 44 21 5 95 20 51 49 Regions Visited 9 Branch Regions 2 Pre-discovered Areas 1 | . . . . . . . . . 1 Known Exits Taken 5 | . 1 1 1 1 . . 1 . . Unknown Exits Taken 2 | 1 . . . . . . . 1 . Scrap Searched 5 | . . . . . . . . 2 3 Spaces Dug 9 | . 6 . 2 1 . . . . . Terrain Destroyed 37 | . 33 . 3 1 . . . . . Melee 1 | . . . . 1 . . . . . Projectile 9 | . 6 . 3 . . . . . . AOE 27 | . 27 . . . . . . . . Terrain Rammed . | . . . . . . . . . . Walls Destroyed . | . . . . . . . . . . Machines Disabled . | . . . . . . . . . . Actions | -11 -10 -9 -8 -7 -6 -6 -6 -6 -6 --------- Run | Scr Mat Mat Mat Fac Fac Was Fac Low Low Total 5596 | 75 1085 367 581 1155 267 149 776 304 837 Wait 783 | . 94 109 117 191 57 6 93 7 109 Move 4537 | 57 870 250 439 931 194 141 646 292 717 Hop 32 | . 7 1 2 2 6 . 11 3 . Pick Up 31 | 6 6 . 2 5 2 . 6 1 3 Fast Attach 40 | 4 7 . 6 6 . 2 11 . 4 Attach 12 | . 1 2 4 . . . 3 1 1 Detach 7 | . 1 2 3 1 . . . . . Swap 18 | 1 10 1 2 1 . . 2 . 1 Drop 26 | 1 9 1 2 7 1 . 4 . 1 Fire 92 | 6 79 1 4 2 . . . . . Melee 10 | . . . . 9 1 . . . . Ram 2 | . 1 . . . . . . . 1 Kick . | . . . . . . . . . . Crush . | . . . . . . . . . . Escape Stasis . | . . . . . . . . . . Rewire 6 | . . . . . 6 . . . . Trap . | . . . . . . . . . . Miscellaneous . | . . . . . . . . . . Route ------- -11/Scrapyard -10/Materials (discovered 3 exits: *Mat x2 / [*Min]) -9/Materials -8/Materials -7/Factory (discovered 5 exits: *Fac x4 / *Low) -6/Factory -6/Waste -6/Factory -6/Lower Caves -6/Lower Caves (discovered 1 exit: [*Fac]) History --------- Turn | Location | Event 4 | -11/Scrapyard | Discovered new exit (range 16) 65 | -11/Scrapyard | Entered Materials 188 | -10/Materials | Discovered new exit (range 4) 307 | -10/Materials | Build established: Mutant 554 | -10/Materials | Discovered new exit (range 15) 681 | -10/Materials | Core integrity fell below 50% 713 | -10/Materials | Discovered new exit (range 5) 716 | -10/Materials | Identified exit to Materials 812 | -10/Materials | Build established: Scavenger-Mutant 837 | -10/Materials | Entered another Materials area 837 | -9/Materials | Accompanied by 1 ally 837 | -9/Materials | Evolved 2 slots: Utility x2 1053 | -9/Materials | Discovered new exit (range 4) 1054 | -9/Materials | Identified exit to Materials 1054 | -9/Materials | Entered another Materials area 1054 | -8/Materials | Evolved 2 slots: Utility x2 1081 | -8/Materials | Lost 4 parts (2n2w) 1320 | -8/Materials | Discovered new exit (range 18) 1349 | -8/Materials | Central database locked down 1365 | -8/Materials | Identified exit to Factory 1369 | -8/Materials | Entered Factory 1369 | -7/Factory | Accompanied by 1 ally 1369 | -7/Factory | Evolved 2 slots: Utility x2 1547 | -7/Factory | Central database locked down 1566 | -7/Factory | Discovered new exit (range 8) 1644 | -7/Factory | Identified exit to Lower Caves 1679 | -7/Factory | Identified exit to Factory 1798 | -7/Factory | Build established: Hacker-Scout 1942 | -7/Factory | Entered another Factory area 1942 | -6/Factory | Accompanied by 2 allies 1942 | -6/Factory | Evolved 2 slots: Propulsion x2 2062 | -6/Factory | Garrison activated, responded to threat 2086 | -6/Factory | Sucked down chute 2086 | -6/Factory | Entered Waste 2087 | -6/Waste | Met a frightened Derelict 2088 | -6/Waste | Spotted C-40 Crusher 2090 | -6/Waste | Spotted C-40 Crusher 2101 | -6/Waste | EMP discharged 2102 | -6/Waste | Spotted C-40 Crusher 2107 | -6/Waste | Crushed by Compactor (1 part destroyed, 2 dropped) 2108 | -6/Waste | Spotted C-40 Crusher 2117 | -6/Waste | Spotted C-40 Crusher 2118 | -6/Waste | Spotted C-40 Crusher 2122 | -6/Waste | Crushed by Compactor (1 part destroyed, 2 dropped) 2125 | -6/Waste | Crushed by Compactor (1 part destroyed, 1 dropped) 2150 | -6/Waste | Discovered new exit (range 11) 2155 | -6/Waste | Identified exit to Factory 2156 | -6/Waste | Lost 3 parts (1n1u1w) 2156 | -6/Waste | Entered Factory 2285 | -6/Factory | Fabricated Hacking Suite? 2388 | -6/Factory | Lost 3 parts (1p2u) 2401 | -6/Factory | Spotted B-75 Beast 2517 | -6/Factory | Core integrity fell below 50% 2532 | -6/Factory | Fabricated Hacking Suite (x1) 2556 | -6/Factory | Discovered new exit (range 8) 2559 | -6/Factory | Identified exit to Lower Caves 2562 | -6/Factory | Entered Lower Caves 2580 | -6/Lower Caves | Lost 4 parts (3n1u) 2633 | -6/Lower Caves | Attracted the attention of an 0b10 outpost 2639 | -6/Lower Caves | Encountered a Warlord checkpoint 2685 | -6/Lower Caves | Core integrity fell below 20% 2685 | -6/Lower Caves | Discovered new exit (range 7) 2687 | -6/Lower Caves | Entered another Lower Caves area 2696 | -6/Lower Caves | Discovered new exit (range 9) 2705 | -6/Lower Caves | Learned 4 Factory zone layouts 2715 | -6/Lower Caves | Lost 4 parts (1n3u) 2746 | -6/Lower Caves | Encountered a Warlord checkpoint 2904 | -6/Lower Caves | Lost 3 parts (2n1w) 3114 | -6/Lower Caves | Destroyed by G-50 Soldier with Heavy Laser Last Messages --------------- 02828_ Found 33 Matter. 02829_ Acquired Adv. Sensor Array. 02831_ Discarded Enh. Optical Array. 02832_ Acquired Energy Well. 02833_ Acquired 33 matter. 02840_ System corrupted: IFF burst signal emitted. 02866_ Nuclear Pulse Thruster destroyed. 02869_ Dropped Adv. ECM Suite. 02869_ Mak. Hammer destroyed. 02873_ Nuclear Pulse Thruster destroyed. 02895_ System corrupted: Heat flow error (+274). 02918_ System corrupted: Energy discharge (-5). 02932_ Acquired 55 matter. 02934_ Acquired 3 matter. 02951_ Acquired Adv. ECM Suite. 02968_ VD